bitfinex/quotes_ETHUSD_20220112
["timestamp","ask_amount","ask_price","bid_price","bid_amount"]
[1642023994712,0.00113684,3370.6,3370.4,1.44905304]
[1642023994908,0.12144211,3370.9,3370.4,0.18825304]
[1642023995313,0.00227369,3370.8,3370.4,0.18825304]
[1642023995513,0.1186,3370.7,3370.4,0.18825304]
[1642023995713,0.12030527,3370.7,3370.4,0.18825304]
[1642023995911,2.09287965,3370.6,3370.4,0.18825304]
[1642023996114,0.1186,3370.5,3370.4,0.18825304]
[1642023996742,0.1186,3370.5,3370.4,1.32105205]
[1642023997142,2.54482527,3370.8,3370.4,1.32105205]
[1642023997143,0.1186,3370.7,3370.4,1.32105205]
[1642023997347,2.54482527,3370.8,3370.4,1.84018205]
[1642023997543,0.00113684,3370.6,3370.4,1.84018205]
[1642023997743,0.1186,3371.0,3370.4,1.84018205]
[1642023997744,2.54482527,3370.5,3370.4,1.84018205]
[1642023998443,2.54482527,3370.5,3370.4,2.58176205]
[1642023998645,2.54766738,3370.9,3370.4,1.32105205]
[1642023998847,2.54766738,3370.9,3370.4,2.32105205]
[1642023999044,0.00227369,3370.8,3370.4,1.32105205]
[1642023999345,0.00170527,3370.7,3370.4,2.32105205]
[1642023999544,0.00170527,3370.7,3370.4,1.32105205]
[1642023999745,0.00113684,3370.6,3370.4,2.32105205]
[1642024000209,0.00284211,3370.9,3370.4,1.32105205]
[1642024000701,2.54482527,3371.0,3370.5,2.03268136]
[1642024000702,0.00227369,3370.8,3370.5,2.03268136]
[1642024001100,0.00170527,3370.7,3370.5,3.77431136]
[1642024001305,0.00170527,3370.7,3370.5,2.77431136]
[1642024001500,2.54482527,3371.0,3370.6,1.0]
[1642024001900,0.00284211,3370.9,3370.6,1.0]
[1642024002299,0.00227369,3370.8,3370.6,1.0]
[1642024002700,0.00170527,3370.7,3370.6,1.0]
[1642024003300,0.00170527,3370.7,3370.6,45.0]
[1642024005035,3.00170527,3370.7,3370.6,45.0]
[1642024005441,3.42030527,3370.7,3370.6,42.5492]
[1642024005839,3.12030527,3370.7,3370.6,42.5492]
[1642024006537,5.66513054,3370.7,3370.6,42.5492]
[1642024007987,5.96513054,3370.7,3370.6,42.5492]
[1642024008787,5.54653054,3370.7,3370.6,42.5492]
[1642024008990,5.54653054,3370.7,3370.6,43.5492]
[1642024009188,5.54653054,3370.7,3370.6,42.5492]
[1642024010594,5.66513054,3370.7,3370.6,42.5492]
[1642024012737,5.54653054,3370.7,3370.6,42.5492]
[1642024016196,5.54653054,3370.7,3370.6,43.5492]
[1642024018198,5.54653054,3370.7,3370.6,44.2908]
[1642024019838,3.00170527,3370.7,3370.6,44.2908]
[1642024020647,3.00170527,3370.7,3370.6,43.5492]
[1642024023388,3.00170527,3370.7,3370.6,43.9752]
[1642024032996,3.0,3370.7,3370.6,43.9752]
[1642024034142,2.95,3370.7,3370.6,43.9752]
[1642024035143,2.95,3370.7,3370.6,44.5752]
[1642024036350,0.1186,3371.5,3370.7,6.55]
[1642024036650,7.66814273,3371.8,3371.4,0.74131]
[1642024036849,0.00625266,3371.5,3371.4,0.74131]
[1642024037048,0.1186,3372.0,3371.5,0.03849416]
[1642024037049,0.0073895,3371.7,3371.5,0.03849416]
[1642024037249,0.00852635,3371.9,3371.5,3.46289565]
[1642024037449,0.00682108,3371.6,3371.5,3.46289565]
[1642024037693,0.00795793,3371.8,3371.5,4.20420565]
[1642024037990,0.0073895,3371.7,3371.5,22.35750565]
[1642024038192,0.0073895,3371.7,3371.5,5.07750565]
[1642024038394,0.00682108,3371.6,3371.5,5.07750565]
[1642024039498,0.00682108,3371.6,3371.5,22.65750565]
[1642024040701,0.1186,3372.6,3371.6,6.55]
[1642024040910,0.72,3372.4,3372.0,0.74111]
[1642024041102,0.72,3372.4,3372.1,0.426]
[1642024041103,0.00397896,3372.3,3372.1,0.426]
[1642024041305,5.26516872,3373.1,3372.2,11.879]
[1642024041550,5.26516872,3373.1,3372.3,3.60583681]
[1642024041744,0.00341054,3372.9,3372.4,18.76189]
[1642024042045,0.00284212,3372.8,3372.7,0.74092]
[1642024042241,5.0,3373.2,3372.8,3.15]
[1642024042441,5.0,3373.2,3372.9,17.706]
[1642024042640,0.00113685,3373.0,3372.9,18.7418]
[1642024042839,0.00113685,3373.0,3372.9,22.96711021]
[1642024043040,1.84403685,3373.2,3373.1,17.28]
[1642024043242,1.84403685,3373.2,3373.1,0.426]
[1642024043442,1.84517369,3373.2,3373.1,0.426]
[1642024044143,1.84517369,3373.2,3373.1,18.006]
[1642024044543,0.1184,3374.0,3373.2,23.83]
[1642024044844,0.00397897,3373.9,3373.5,0.74076]
[1642024045043,0.00397897,3373.9,3373.6,0.426]
[1642024045298,0.00341054,3373.8,3373.6,0.426]
[1642024045498,0.00341054,3373.8,3373.7,3.24193899]
[1642024045698,1.44942599,3374.1,3373.7,3.66793899]
[1642024045898,1.44942599,3374.1,3373.9,0.74082]
[1642024046197,3.00454739,3374.0,3373.9,0.74082]
[1642024046598,3.0,3374.0,3373.9,1.16682]
[1642024047002,3.0,3374.0,3373.9,1.46682]
[1642024047399,0.00568424,3374.2,3374.0,0.04875309]
[1642024047604,0.00568424,3374.2,3374.1,0.426]
[1642024047802,0.1184,3374.7,3374.1,0.426]
[1642024048000,2.02981648,3374.7,3374.3,1.22373271]
[1642024048200,0.00738951,3374.5,3374.4,0.426]
[1642024048400,0.12578951,3374.5,3374.4,0.426]
[1642024048603,0.00738951,3374.5,3374.4,0.426]
[1642024048801,0.12578951,3374.5,3374.4,0.426]
[1642024049049,2.11699944,3375.1,3375.0,37.15824177]
[1642024049247,8.26485378,3375.4,3375.0,37.15824177]
[1642024049248,1.43980801,3375.4,3375.0,37.15824177]
[1642024049448,1.43980801,3375.4,3375.1,0.04445504]
[1642024049646,1.43980801,3375.4,3375.1,4.03489631]
[1642024049847,1.43980801,3375.4,3375.1,3.29434631]
[1642024049848,0.00454739,3375.3,3375.1,3.29434631]
[1642024050049,0.00454739,3375.3,3375.0,37.15824177]
[1642024050247,1.43980801,3375.4,3375.0,37.15824177]
[1642024050248,0.00397896,3375.2,3375.0,37.15824177]
[1642024050451,1.39378697,3375.4,3375.0,37.15824177]
[1642024050647,5.19042089,3375.9,3375.0,37.15824177]
[1642024050847,2.29137512,3375.9,3375.0,37.15824177]
[1642024051049,0.00113685,3375.4,3375.0,34.94603926]
[1642024051347,0.00113685,3375.4,3375.0,36.1805]
[1642024051749,0.50848732,3375.3,3375.0,36.1805]
[1642024052350,0.50848732,3375.3,3375.0,16.1065363]
[1642024052550,0.80848732,3375.3,3375.0,16.1065363]
[1642024052788,0.50848732,3375.3,3375.0,16.1065363]
[1642024053390,0.50848732,3375.2,3375.0,16.1065363]
[1642024053995,0.50848732,3375.2,3375.1,1.0]
[1642024054198,0.62698732,3375.2,3375.1,1.0]
[1642024054395,0.62698732,3375.2,3375.0,11.68353464]
[1642024054595,0.50848732,3375.2,3375.0,11.68353464]
[1642024055896,3.50848732,3375.2,3375.0,11.68353464]
[1642024056095,2.12221144,3375.1,3375.0,11.68353464]
[1642024056295,2.24061144,3375.1,3375.0,11.68353464]
[1642024056544,2.24061144,3375.1,3375.0,11.68467148]
[1642024057142,0.1184,3375.1,3375.0,11.68467148]
[1642024057342,0.7408579,3375.2,3375.0,11.68467148]
[1642024057544,0.50848732,3375.1,3375.0,11.68467148]
[1642024058945,0.00113685,3375.4,3375.0,11.68467148]
[1642024059144,0.00113685,3375.4,3375.1,0.04701212]
[1642024059347,0.00113685,3375.4,3375.0,11.68467148]
[1642024059846,0.7407825,3375.3,3375.0,11.68467148]
[1642024060294,0.5084965,3375.2,3375.0,11.68467148]
[1642024061696,2.54195537,3375.1,3375.0,11.68467148]
[1642024062698,3.05045187,3375.1,3375.0,11.68467148]
[1642024063297,3.05045187,3375.1,3375.0,11.80307148]
[1642024064055,5.16173958,3375.1,3375.0,11.80307148]
[1642024064255,1.80336551,3375.3,3375.0,0.11953684]
[1642024064465,1.80336551,3375.3,3375.1,0.1184]
[1642024064652,1.80336551,3375.3,3375.1,0.12010527]
[1642024064852,1.80336551,3375.3,3375.2,0.00113685]
[1642024065056,6.6195,3375.2,3374.7,0.1184]
[1642024065258,0.7409518,3375.0,3374.8,0.00227369]
[1642024065456,0.7409518,3375.0,3373.9,0.06553]
[1642024065457,1.52159417,3374.7,3373.9,0.01553]
[1642024065758,2.24133808,3374.6,3374.0,0.00454739]
[1642024066458,0.74107,3374.5,3374.0,0.00454739]
[1642024066659,0.1184,3374.4,3374.0,0.00454739]
[1642024066859,0.1184,3374.5,3374.0,0.00454739]
[1642024067065,0.01898437,3373.7,3373.2,0.74099]
[1642024067258,0.1184,3374.5,3373.3,2.86267284]
[1642024067460,0.0022737,3374.4,3374.1,1.36025584]
[1642024067689,0.0022737,3374.4,3373.4,1.05002]
[1642024067891,1.2489,3374.6,3373.4,1.05002]
[1642024067892,0.00170527,3374.3,3373.4,1.05002]
[1642024068090,0.00170527,3374.3,3373.5,0.00284212]
[1642024068292,0.00113685,3374.2,3373.6,0.1184]
[1642024068689,2.29492288,3374.1,3373.7,0.00170527]
[1642024071935,2.29492288,3374.1,3373.6,2.93332653]
[1642024072134,2.29492288,3374.1,3373.7,0.00170527]
[1642024072339,2.29492288,3374.1,3373.8,0.1184]
[1642024073135,2.29492288,3374.1,3373.7,0.00170527]
[1642024073537,2.29492288,3374.1,3373.5,0.00284212]
[1642024073737,1.1590749,3374.0,3373.5,0.00284212]
[1642024073939,1.2774749,3374.0,3373.5,0.00284212]
[1642024074136,1.2774749,3374.0,3373.1,0.00511581]
[1642024074339,8.8428,3373.9,3373.1,0.00511581]
[1642024074536,0.1184,3373.8,3373.1,0.00511581]
[1642024074736,0.1184,3373.8,3372.7,0.0073895]
[1642024074737,1.3273,3373.8,3372.7,0.0073895]
[1642024074941,2.19923181,3372.8,3372.6,1.36295975]
[1642024075187,1.3273,3373.8,3372.6,1.36295975]
[1642024075394,1.3273,3373.8,3372.7,0.0073895]
[1642024075593,0.7412018,3373.6,3372.7,0.0073895]
[1642024075892,0.1184,3373.5,3372.7,0.0073895]
[1642024076592,2.01615506,3372.9,3372.7,0.0073895]
[1642024076991,2.01615506,3372.9,3372.6,0.00795793]
[1642024077192,2.01615506,3372.9,3372.7,0.1184]
[1642024077394,2.01615506,3372.9,3372.6,0.00795793]
[1642024077595,2.01615506,3372.9,3372.8,0.00682108]
[1642024077792,2.01615506,3372.9,3372.6,0.00795793]
[1642024078692,0.1184,3373.5,3372.6,0.00795793]
[1642024078962,0.1184,3373.5,3372.7,0.060865]
[1642024079156,0.1184,3373.7,3372.7,1.0]
[1642024079356,0.1184,3373.7,3372.8,0.00682108]
[1642024079757,2.15254386,3373.1,3372.8,0.00682108]
[1642024080562,2.15254386,3373.1,3372.6,0.00795793]
[1642024080762,2.15254386,3373.1,3372.7,0.1184]
[1642024081163,0.1184,3373.7,3372.8,0.00682108]
[1642024081763,1.45329358,3373.5,3372.8,0.00682108]
[1642024082366,2.25778444,3373.1,3372.8,0.00682108]
[1642024084290,2.25778444,3373.1,3372.7,0.0073895]
[1642024084895,2.54272893,3373.0,3372.7,0.0073895]
[1642024085492,2.49272893,3373.0,3372.7,0.0073895]
[1642024085897,2.25778444,3373.1,3372.7,0.7484695]
[1642024086094,2.25778444,3373.1,3372.9,0.74106]
[1642024086540,2.25778444,3373.1,3373.0,0.00568423]
[1642024086940,2.25778444,3373.1,3372.9,0.00625266]
[1642024087338,2.25778444,3373.1,3372.7,0.0073895]
[1642024087540,2.25778444,3373.1,3372.6,0.00795793]
[1642024087941,2.25778444,3373.1,3372.6,1.57333423]
[1642024088139,2.25778444,3373.1,3372.6,2.57333423]
[1642024088340,2.25778444,3373.1,3372.7,0.0073895]
[1642024088839,2.25778444,3373.1,3372.7,0.7485295]
[1642024089041,2.25778444,3373.1,3372.7,0.0073895]
[1642024089241,2.25778444,3373.1,3372.8,0.00682108]
[1642024089442,2.25778444,3373.1,3372.7,0.0073895]
[1642024089840,2.25778444,3373.1,3372.6,0.00795793]
[1642024090040,1.3631,3373.4,3372.6,0.00795793]
[1642024090295,1.3631,3373.4,3372.7,0.49547347]
[1642024090496,1.3631,3373.4,3372.7,0.44468]
[1642024090696,1.3631,3373.4,3372.8,0.00682108]
[1642024091095,1.3631,3373.4,3372.8,2.50989865]
[1642024091299,1.3631,3373.4,3373.0,2.2677275]
[1642024091300,1.2447,3373.4,3373.0,2.2677275]
[1642024091496,0.1184,3373.7,3373.0,2.2677275]
[1642024091695,0.1184,3373.8,3373.1,0.00511581]
[1642024091894,0.1184,3373.8,3373.1,2.46214587]
[1642024092093,0.1184,3373.8,3373.1,3.46214587]
[1642024092295,0.1184,3373.8,3373.2,0.74556739]
[1642024092696,0.1184,3373.8,3373.2,1.74556739]
[1642024092999,2.25471967,3373.6,3373.2,1.74556739]
[1642024093197,2.25471967,3373.6,3373.2,1.00454739]
[1642024093396,2.25471967,3373.6,3373.2,0.00454739]
[1642024094037,2.25471967,3373.6,3373.1,0.00511581]
[1642024094443,2.25471967,3373.6,3372.9,0.1184]
[1642024094444,2.25471967,3373.6,3373.0,0.00568423]
[1642024094844,2.99586307,3373.6,3373.0,0.00568423]
[1642024095043,2.99586307,3373.6,3373.0,1.00568423]
[1642024095244,2.25471967,3373.6,3373.0,1.00568423]
[1642024095444,2.25471967,3373.6,3373.1,2.50768317]
[1642024095748,2.25471967,3373.6,3373.2,1.00454739]
[1642024096146,2.25471967,3373.6,3373.2,0.00454739]
[1642024096546,2.25471967,3373.6,3373.0,0.00568423]
[1642024096747,1.4423075,3373.4,3373.0,0.00568423]
[1642024097705,2.0423075,3373.4,3373.0,0.00568423]
[1642024097897,0.7413219,3373.2,3373.0,0.00568423]
[1642024098100,5.1184,3373.1,3373.0,0.00568423]
[1642024098702,5.4184,3373.1,3373.0,0.00568423]
[1642024099705,6.15973,3373.1,3373.0,0.00568423]
[1642024099905,6.15973,3373.1,3372.2,0.01023162]
[1642024100105,0.7184,3373.1,3372.0,2.30446]
[1642024100407,0.7184,3373.1,3372.0,4.07634259]
[1642024100607,0.4184,3373.1,3372.0,3.63157259]
[1642024100912,0.1184,3373.1,3372.0,1.1184]
[1642024101110,1.70751537,3372.6,3372.0,3.04718394]
[1642024101309,1.70751537,3372.6,3372.1,1.48247]
[1642024101548,3.89385418,3373.2,3372.2,2.58367558]
[1642024101749,3.89385418,3373.2,3372.3,2.48232]
[1642024101952,3.89385418,3373.2,3372.4,2.78465155]
[1642024102149,3.89385418,3373.2,3372.5,1.0]
[1642024102449,0.00215418,3373.2,3373.0,2.0507456]
[1642024102649,0.00215418,3373.2,3372.9,1.1184]
[1642024102849,0.00215418,3373.2,3373.1,0.00511581]
[1642024103047,0.00215418,3373.2,3373.0,0.00568423]
[1642024103552,0.00215418,3373.2,3373.0,0.74107]
[1642024103749,0.00215418,3373.2,3373.0,0.1184]
[1642024103950,0.00215418,3373.2,3373.1,0.00511581]
[1642024104549,0.00215418,3373.2,3373.0,1.00568423]
[1642024104752,0.00215418,3373.2,3373.0,0.00568423]
[1642024104952,0.00215418,3373.2,3373.1,0.00511581]
[1642024105187,0.00215418,3373.2,3373.0,0.00568423]
[1642024105792,0.00215418,3373.2,3373.0,2.4734426]
[1642024106195,0.00215418,3373.2,3373.1,0.00511581]
[1642024106592,0.00215418,3373.2,3373.1,2.47438242]
[1642024106994,2.60215418,3373.2,3373.1,2.47438242]
[1642024107194,2.60215418,3373.2,3373.1,3.47438242]
[1642024107394,2.60215418,3373.2,3373.1,1.00511581]
[1642024107593,2.60215418,3373.2,3373.1,0.00511581]
[1642024109042,2.60215418,3373.2,3372.5,0.00852635]
[1642024109543,1.95299856,3372.6,3372.3,0.7508932]
[1642024109742,1.95299856,3372.6,3372.4,0.1186]
[1642024109942,1.95299856,3372.6,3372.4,0.12769477]
[1642024110142,1.95299856,3372.6,3372.5,0.00852635]
[1642024110548,1.95299856,3372.6,3372.4,0.00909477]
[1642024111149,2.54308489,3372.5,3372.4,0.00909477]
[1642024111354,2.54308489,3372.5,3372.4,0.45382477]
[1642024111749,2.54308489,3372.5,3372.4,1.19503477]
[1642024114198,2.54308489,3372.5,3372.4,2.19503477]
[1642024114395,2.54308489,3372.5,3372.4,1.19503477]
[1642024114598,2.54308489,3372.5,3372.4,2.19916593]
[1642024114797,2.54308489,3372.5,3372.4,1.19916593]
[1642024117644,5.14308489,3372.5,3372.4,1.19916593]
[1642024124745,5.07382589,3372.5,3372.4,1.19916593]
[1642024125249,6.5240676,3372.5,3372.4,1.19916593]
[1642024125453,6.5240676,3372.5,3372.4,0.01322593]
[1642024125652,6.6426676,3372.5,3372.4,0.01322593]
[1642024126251,8.58898369,3372.5,3372.4,0.01322593]
[1642024126453,9.33041369,3372.5,3372.4,0.01322593]
[1642024126851,9.31041369,3372.5,3372.4,0.01322593]
[1642024128296,9.33041369,3372.5,3372.4,0.01322593]
[1642024128499,9.53926854,3372.5,3372.4,0.01322593]
[1642024128699,8.79783854,3372.5,3372.4,0.01322593]
[1642024129297,8.67923854,3372.5,3372.4,0.01322593]
[1642024129499,8.67923854,3372.5,3372.4,2.593e-05]
[1642024129500,5.88268074,3372.5,3372.4,2.593e-05]
[1642024129701,6.00128074,3372.5,3372.4,2.593e-05]
[1642024130301,5.95128074,3372.5,3372.4,2.593e-05]
[1642024130702,9.87582768,3372.5,3372.4,2.593e-05]
[1642024131454,6.69276074,3372.5,3372.4,2.593e-05]
[1642024132357,5.70128074,3372.5,3372.4,2.593e-05]
[1642024132553,5.58268074,3372.5,3372.4,0.11862593]
[1642024132750,5.07382589,3372.5,3372.4,0.11862593]
[1642024133150,5.07382589,3372.5,3372.4,1.98965008]
[1642024133553,5.07382589,3372.5,3372.4,2.73085008]
[1642024133950,5.07382589,3372.5,3372.4,3.73085008]
[1642024134552,5.07382589,3372.5,3372.4,3.73444215]
[1642024134955,5.07382589,3372.5,3372.4,1.003618]
[1642024135199,5.07382589,3372.5,3372.4,0.003618]
[1642024137305,5.07382589,3372.5,3372.4,1.85305267]
[1642024137904,5.07382589,3372.5,3372.4,0.003618]
[1642024138103,5.07382589,3372.5,3372.3,0.74125]
[1642024138304,5.07382589,3372.5,3372.3,0.85985]
[1642024138505,2.6,3372.5,3372.3,0.85985]
[1642024138967,2.6,3372.5,3372.3,3.07769131]
[1642024139157,2.6,3372.5,3372.3,2.33644131]
[1642024139358,2.6,3372.5,3372.4,1.0]
[1642024139558,2.6,3372.5,3372.3,3.33644131]
[1642024139758,2.6,3372.5,3372.3,0.1186]
[1642024139959,2.6,3372.5,3372.4,1.0]
[1642024140163,2.6,3372.5,3372.2,0.62165838]
[1642024141368,2.6,3372.5,3372.2,2.64911118]
[1642024141566,2.6,3372.5,3372.4,0.74123]
[1642024144907,2.6,3372.5,3372.4,1.99963]
[1642024145209,2.6,3372.5,3372.4,5.29963]
[1642024145606,2.6,3372.5,3372.4,6.29963]
[1642024149363,2.6,3372.5,3372.4,6.18103]
[1642024149562,2.6,3372.5,3372.4,2.88103]
[1642024150304,2.6,3372.5,3372.4,2.99963]
[1642024150708,3.9173,3373.4,3372.5,6.55]
[1642024150909,0.1186,3373.5,3372.9,0.74095]
[1642024151113,0.1186,3373.5,3373.1,0.74099]
[1642024151310,4.6748,3373.6,3373.1,0.74099]
[1642024151511,2.04859197,3373.7,3373.4,1.72810601]
[1642024151708,0.00625265,3373.5,3373.4,1.72810601]
[1642024151908,0.00625265,3373.5,3373.4,2.88193726]
[1642024152112,0.00909477,3374.0,3373.4,3.88193726]
[1642024152309,0.00909477,3374.0,3373.4,5.36370726]
[1642024152508,0.00852635,3373.9,3373.5,1.0]
[1642024152907,0.00795792,3373.8,3373.5,1.0]
[1642024153308,0.0073895,3373.7,3373.6,0.74087]
[1642024153507,0.0073895,3373.7,3373.6,1.48174]
[1642024154143,0.0073895,3373.7,3373.6,3.49087]
[1642024154645,0.0073895,3373.7,3373.6,4.91687]
[1642024155047,0.0073895,3373.7,3373.6,7.74256323]
[1642024155450,0.0073895,3373.7,3373.6,4.99256323]
[1642024155850,0.0073895,3373.7,3373.6,2.46687]
[1642024156752,0.0073895,3373.7,3373.6,2.16687]
[1642024156949,0.0073895,3373.7,3373.4,2.04468]
[1642024156950,0.1257895,3373.7,3373.4,0.1184]
[1642024157148,0.0073895,3373.7,3372.8,0.44467]
[1642024157348,0.0073895,3373.7,3372.4,0.426]
[1642024157349,0.12522108,3373.6,3372.6,5.6381]
[1642024157551,0.00682108,3373.6,3372.6,5.6381]
[1642024157800,0.1184,3373.9,3372.8,3.06915524]
[1642024157801,2.28396404,3373.2,3372.8,3.06915524]
[1642024158001,0.00852635,3373.9,3372.9,0.7411]
[1642024158002,6.0407,3373.6,3372.9,0.7411]
[1642024158206,0.00397896,3373.1,3372.9,0.7411]
[1642024158404,0.1184,3373.5,3372.9,0.7411]
[1642024158603,0.00341054,3373.0,3372.9,1.7411]
[1642024158806,0.00568423,3373.4,3372.9,1.7411]
[1642024159006,0.00341054,3373.0,3372.9,1.7411]
[1642024159204,0.00511581,3373.3,3373.0,0.44462]
[1642024159406,1.65091702,3373.4,3373.1,0.74101]
[1642024159604,0.1184,3373.5,3373.1,1.74101]
[1642024159806,0.00511581,3373.3,3373.1,1.74101]
[1642024160205,0.00454738,3373.2,3373.1,1.74101]
[1642024161450,0.00454738,3373.2,3373.1,2.482]
[1642024163451,0.00454738,3373.2,3373.1,1.74101]
[1642024163747,2.10268904,3373.2,3373.1,1.0]
[1642024163946,2.10268904,3373.2,3372.9,2.63031]
[1642024164350,0.00397896,3373.1,3372.9,2.63031]
[1642024164749,0.00341054,3373.0,3372.9,2.63031]
[1642024165199,0.00341054,3373.0,3372.9,2.93031]
[1642024166508,0.00341054,3373.0,3372.9,3.04871]
[1642024166908,0.00341054,3373.0,3372.9,7.24871]
[1642024167713,0.00341054,3373.0,3372.9,3.04871]
[1642024167909,0.00341054,3373.0,3372.9,5.74871]
[1642024168310,0.00341054,3373.0,3372.9,3.04871]
[1642024169851,0.00341054,3373.0,3372.9,9.07471]
[1642024170054,0.00341054,3373.0,3372.9,9.37471]
[1642024170254,0.00341054,3373.0,3372.9,9.07471]
[1642024171059,0.00341054,3373.0,3372.9,9.37471]
[1642024171758,9.8567,3374.2,3373.8,0.74092]
[1642024171957,0.1184,3374.5,3373.8,0.74092]
[1642024172158,0.00625266,3374.1,3374.0,1.69885724]
[1642024176849,0.00625266,3374.1,3373.9,1.0]
[1642024177049,0.00625266,3374.1,3373.8,2.77170694]
[1642024177252,0.1184,3374.5,3373.9,0.74086]
[1642024177253,0.00568423,3374.0,3373.9,0.74086]
[1642024177450,0.00568423,3374.0,3373.9,5.31686]
[1642024178051,0.015514,3374.8,3373.9,2.16686]
[1642024178250,0.015514,3374.8,3374.6,3.05620855]
[1642024178450,0.015514,3374.8,3374.7,0.74073]
[1642024178653,0.015514,3374.8,3374.7,1.74073]
[1642024178855,0.02006139,3374.8,3374.7,1.74073]
[1642024179256,0.02006139,3374.8,3374.7,1.0]
[1642024179453,0.02006139,3374.8,3374.6,1.75614754]
[1642024179854,0.00397897,3374.7,3374.6,1.75614754]
[1642024180054,0.00397897,3374.7,3374.5,1.44444]
[1642024180301,0.00397897,3374.7,3374.5,0.44444]
[1642024180502,0.00341054,3374.6,3374.4,0.88896]
[1642024180702,0.00341054,3374.6,3374.4,1.62976]
[1642024180902,0.00284212,3374.5,3374.4,1.62976]
[1642024181104,0.00284212,3374.5,3374.4,3.80415891]
[1642024181606,0.00284212,3374.5,3374.4,1.7408]
[1642024181803,0.00284212,3374.5,3374.4,0.7408]
[1642024183205,0.00284212,3374.5,3374.4,2.48022873]
[1642024183707,0.00284212,3374.5,3374.4,3.78022873]
[1642024185949,0.00284212,3374.5,3374.4,3.77746073]
[1642024186749,0.00284212,3374.5,3374.4,2.038032]
[1642024188099,0.00284212,3374.5,3374.4,4.34422889]
[1642024189403,0.00284212,3374.5,3374.4,4.77022889]
[1642024189805,0.00284212,3374.5,3374.4,4.88862889]
[1642024191006,0.00284212,3374.5,3374.4,4.77022889]
[1642024191848,3.8353,3375.1,3375.0,0.73164388]
[1642024192047,0.1184,3375.4,3375.0,0.73164388]
[1642024192247,0.1184,3375.4,3375.1,0.44442]
[1642024192650,0.50842188,3375.3,3375.1,0.44442]
[1642024193149,0.00397896,3375.2,3375.1,2.99845032]
[1642024193350,0.00397896,3375.2,3375.1,3.72445032]
[1642024193551,0.00397896,3375.2,3375.1,4.72445032]
[1642024194153,5.0096,3375.6,3375.1,2.61107]
[1642024194357,0.1184,3375.5,3375.1,1.44442]
[1642024194551,0.12010527,3375.5,3375.0,1.73164388]
[1642024194751,0.12010527,3375.5,3375.0,0.73164388]
[1642024195197,4.33285314,3375.4,3375.0,0.73164388]
[1642024195400,0.1184,3375.3,3375.0,0.73164388]
[1642024195702,0.1184,3375.3,3375.0,1.17609388]
[1642024196603,2.54155086,3375.2,3375.0,1.17609388]
[1642024199654,2.54155086,3375.3,3375.0,1.17609388]
[1642024200256,2.54155086,3375.3,3375.0,1.91683388]
[1642024200656,2.54155086,3375.3,3375.0,2.91683388]
[1642024200860,2.54155086,3375.3,3375.0,1.91683388]
[1642024201060,2.54155086,3375.3,3375.1,1.0]
[1642024201262,2.54155086,3375.3,3375.0,1.91683388]
[1642024202061,2.54155086,3375.3,3375.0,1.17609388]
[1642024202263,2.54155086,3375.3,3375.0,0.73164388]
[1642024203403,2.54155086,3375.3,3375.1,0.1184]
[1642024203801,2.54155086,3375.3,3375.2,0.74054]
[1642024204003,2.54155086,3375.3,3375.2,1.04054]
[1642024205003,2.54155086,3375.3,3375.2,2.12845027]
[1642024206749,2.54155086,3375.3,3375.2,1.38791027]
[1642024207147,2.54155086,3375.3,3375.1,1.0]
[1642024207352,2.54155086,3375.3,3375.1,1.3]
[1642024207751,4.55363989,3376.0,3375.3,6.55]
[1642024207954,3.64115623,3376.1,3375.5,2.22099]
[1642024207955,2.15975503,3376.1,3375.5,2.22099]
[1642024208155,2.15975503,3376.1,3375.7,0.64641464]
[1642024208355,2.15975503,3376.1,3375.9,0.59809731]
[1642024208554,2.15975503,3376.1,3376.0,1.14239731]
[1642024208757,1.77167014,3376.1,3376.0,2.45157115]
[1642024208959,2.15975503,3376.8,3376.0,2.45157115]
[1642024208960,2.04240429,3376.2,3376.1,0.59809731]
[1642024209156,2.04240429,3376.2,3376.1,1.14249731]
[1642024209455,2.04240429,3376.2,3376.1,2.14249731]
[1642024209456,0.00397897,3376.2,3376.1,2.14249731]
[1642024209657,2.15975503,3376.8,3376.3,0.59809731]
[1642024209860,2.15975503,3376.8,3376.5,0.59809731]
[1642024210056,2.15975503,3376.8,3376.7,0.59809731]
[1642024210509,2.25688865,3376.8,3376.7,0.59809731]
[1642024210810,2.00688865,3376.8,3376.7,2.07859731]
[1642024211407,2.00688865,3376.8,3376.7,3.07859731]
[1642024211808,0.1184,3377.3,3376.8,0.74025]
[1642024212008,0.1184,3377.3,3376.9,0.59809731]
[1642024212209,0.1184,3377.3,3377.1,0.59809731]
[1642024212611,0.00227369,3377.2,3377.1,0.59809731]
[1642024213211,0.00227369,3377.2,3377.1,2.94850731]
[1642024213710,0.00227369,3377.2,3377.1,2.94857984]
[1642024214156,0.00227369,3377.2,3377.1,6.27965952]
[1642024214456,2.27686741,3377.6,3377.3,0.74011]
[1642024214655,2.27686741,3377.6,3377.3,1.62823]
[1642024214859,0.00170527,3377.5,3377.3,1.92823]
[1642024215059,0.00170527,3377.5,3377.3,2.92823]
[1642024215261,0.00113685,3377.4,3377.3,2.92823]
[1642024215461,0.00113685,3377.4,3377.3,3.35423]
[1642024219309,2.27686741,3377.6,3377.3,3.35423]
[1642024219310,2.02800426,3377.6,3377.3,3.35423]
[1642024219509,2.02800426,3377.6,3377.3,3.35844359]
[1642024219711,2.02800426,3377.6,3377.4,1.47996]
[1642024220009,2.02800426,3377.6,3377.5,0.426]
[1642024220422,2.02914111,3377.6,3377.5,0.426]
[1642024220715,2.02914111,3377.6,3377.5,1.16596]
[1642024221116,2.02914111,3377.6,3377.5,2.16596]
[1642024221559,2.02914111,3377.6,3377.5,2.46596]
[1642024224562,2.02914111,3377.6,3377.5,5.22055586]
[1642024225064,2.02914111,3377.6,3377.5,2.77016402]
[1642024225319,0.84672019,3377.9,3377.6,8.48275287]
[1642024225518,0.84672019,3377.9,3377.7,1.46589]
[1642024225720,0.84672019,3377.9,3377.8,0.1184]
[1642024225916,0.84672019,3377.9,3377.8,0.426]
[1642024226117,0.84842546,3377.9,3377.8,0.426]
[1642024226317,0.84842546,3377.9,3377.5,1.48398402]
[1642024226318,0.12010527,3377.9,3377.5,1.48398402]
[1642024226517,0.1184,3377.8,3377.5,1.48398402]
[1642024226817,0.00113684,3377.8,3377.5,1.48398402]
[1642024227017,2.13274091,3377.7,3377.5,1.48398402]
[1642024227420,2.13274091,3377.7,3377.5,2.07589402]
[1642024228019,0.00113684,3377.8,3377.5,2.07589402]
[1642024228222,2.53954768,3377.6,3377.5,2.37589402]
[1642024229475,0.00113684,3377.8,3377.7,0.00419444]